Cogmind - Beta 15 @@@ ROGUE MODE // 2025.07.24 @ 13:00:52 Player: beans Result: Destroyed by G-47 Trooper with Particle Gun Performance ------------- Evolutions (2) 1000 Regions Visited (3) 600 Robots Destroyed (42) 210 Value Destroyed (1113) 1113 Prototype IDs (2) 40 Alien Tech Used (0) 0 Bonus (0) 0 TOTAL SCORE: 2963 Bonus ------- None Cogmind --------- Core Integrity 0/550 Matter 191/300 Energy 240/240 System Corruption 0% Temperature Cool (9) Movement Flying (245) Ox3 Location -8/Materials Parts ------- > --- POWER (2) -------- Nuclear Core > --- PROPULSION (4) --- Improved VTOL Module > --- UTILITY (3) ------ Improved Heat Sink > --- WEAPON (2) ------- Gauss Rifle Gauss Rifle > --- INVENTORY (5) ---- Xenon Bombardment Thruster Plasma Cannon Plasma Cannon Gauss Rifle Peak State ------------ > --- POWER ------------ Light Deuterium Engine Light Nuclear Core > --- PROPULSION ------- Cesium-ion Thruster Surge Thruster Surge Thruster Xenon Bombardment Thruster > --- UTILITY ---------- Improved Heat Sink System Restoration Module > --- WEAPON ----------- Advanced Beam Rifle Plasma Cannon > --- INVENTORY -------- Improved Light Armor Plating Gauss Rifle Gauss Rifle Assault Cannon [Rating: 35] Favorites ----------- Power Light Nuclear Core Engine Light Deuterium Engine Power Core Light Nuclear Core Propulsion Xenon Bombardment Thruster Treads Light Treads Hover Unit Gravmag System Flight Unit Xenon Bombardment Thruster Utility Improved Heat Sink Device Improved Heat Sink Protection Light Armor Plating Weapon Gauss Rifle Energy Gun EM Pulse Gun Energy Cannon Plasma Cannon Ballistic Gun Gauss Rifle Ballistic Cannon Assault Cannon Build | -11 -10 -9 -8 ------- Run | Yrd Mat Mat Mat Slots Evolved 4 | . . 2 2 Power 1 | . . 1 . Propulsion 2 | . . . 2 Utility 1 | . . 1 . Weapon . | . . . . Parts Attached 38 | 4 . 2 32 Power 7 | 1 . . 6 Engine 3 | 1 . . 2 Core 4 | . . . 4 Reactor . | . . . . Propulsion 17 | 2 . 1 14 Treads 2 | 2 . . . Leg . | . . . . Wheel . | . . . . Hover 4 | . . . 4 Flight 11 | . . 1 10 Utility 4 | . . 1 3 Device 2 | . . . 2 Storage . | . . . . Processor . | . . . . Hackware . | . . . . Protection 2 | . . 1 1 Artifact . | . . . . Weapon 10 | 1 . . 9 Energy Gun 2 | 1 . . 1 Energy Cannon 1 | . . . 1 Ballistic Gun 6 | . . . 6 Ballistic Cannon 1 | . . . 1 Launcher . | . . . . Special Weapon . | . . . . Impact Weapon . | . . . . Slashing Weapon . | . . . . Piercing Weapon . | . . . . Special Melee Weapon . | . . . . Unidentified Prototypes 2 | . . . 2 Parts Lost 18 | . . 3 15 Power 5 | . . 1 4 Propulsion 8 | . . 1 7 Utility 1 | . . . 1 Weapon 4 | . . 1 3 Highest Loss Streak 3 | . . 2 3 To Critical Strikes 1 | . . . 1 Average Backups 3 | . . . 3 Power . | . . . . Propulsion . | . . . . Utility . | . . . . Weapon 2 | . . . 2 Tool/Special . | . . . . Unused Backups 3 | 1 . . 2 Power . | . . . . Propulsion . | . . . . Utility . | . . . . Weapon 3 | 1 . . 2 Tool/Special . | . . . . Average Slot Usage (%) 49 | . 57 43 49 Engine 4 | . 14 7 2 Core 5 | . . . 6 Treads 4 | . 28 17 . Hover 1 | . . . 1 Flight 10 | . . 2 13 Device 7 | . . . 9 Energy Gun 2 | . 14 11 . Energy Cannon 1 | . . . 2 Ballistic Gun 9 | . . . 12 Peak Build Rating 35 | 4 4 5 35 Average Rating 16 | 3 4 4 20 On Entrance 2 | . 4 4 1 Naked Turns . | . . . . Heaviest Build 19 | 7 7 10 19 Greatest Support 40 | 40 40 40 36 Greatest Overweight (x) 5 | . . 1 5 Average Overweight (x) 1 | . . . 1 Largest Inventory Capacity 5 | 5 5 5 5 Average Capacity 5 | 5 5 5 5 Most Carried 5 | 3 . 2 5 Average Carried 3 | . . . 3 Final Capacity 5 | 5 5 5 5 Final Carried 4 | . . . 4 Class Distribution -------------------- 80% | Mutant 17% | Scavenger-Mutant Dominant Class ---------------- Mutant | -10/Materials Mutant | -9/Materials Mutant | -8/Materials Resources | -11 -10 -9 -8 ----------- Run | Yrd Mat Mat Mat Matter Collected 1412 | 240 . 35 1137 Remotely . | . . . . Salvage Created 1623 | 58 . 221 1344 Parts 107 | 3 . 17 87 Haulers Intercepted 2 | . . . 2 Recyclers Shooed 2 | . . . 2 Parts Field Recycled . | . . . . Retrieved Matter . | . . . . Parts Self-Destructed . | . . . . Prevented . | . . . . Kills | -11 -10 -9 -8 ------- Run | Yrd Mat Mat Mat Combat Hostiles Destroyed 24 | . . 4 20 Guns 19 | . . 4 15 Cannons 5 | . . . 5 Classes Destroyed 13 | 1 . 2 10 Worker 6 | . . . 6 Builder 2 | . . . 2 Hauler 2 | . . . 2 Recycler 4 | 1 . . 3 Mechanic 1 | . . . 1 Operator 1 | . . . 1 Watcher 2 | . . . 2 Swarmer 3 | . . . 3 Cutter 3 | . . . 3 Grunt 6 | . . 1 5 Sentry 9 | . . 3 6 Specialist 1 | . . . 1 Hunter 2 | . . . 2 Best Kill Streak 4 | 1 . 2 4 Combat Bots Only 4 | . . 2 4 Max Kills in Single Turn 2 | 1 . 1 2 Gunslinging . | . . . . Exploded . | . . . . Melee . | . . . . Uniques/NPCs Destroyed . | . . . . Combat | -11 -10 -9 -8 -------- Run | Yrd Mat Mat Mat Hostile Shots Fired 209 | . . 32 177 Missed 64 | . . 10 54 Hits 145 | . . 22 123 Melee 6 | . . . 6 Projectile 139 | . . 22 117 AOE 2 | . . . 2 Critical Strikes 11 | . . . 11 Damage Taken 2267 | . 39 262 1966 Core 646 | . 39 52 555 Absorbed by Shields . | . . . . Core Remaining (%) 90 | 100 84 87 . Volleys Fired 183 | 4 2 24 153 Largest 2 | 1 1 1 2 Hottest 108 | 40 40 40 108 Shots Fired 276 | 4 2 24 246 Gun 219 | 4 2 24 189 Cannon 57 | . . . 57 Launcher . | . . . . Special . | . . . . Kinetic 200 | . . . 200 Thermal 46 | . . . 46 Explosive . | . . . . Electromagnetic 30 | 4 2 24 . Robot Hit Streak 11 | 3 1 11 11 Robot Miss Streak 5 | 1 1 2 5 Penetration Max 1 | . . . 1 Secondary Targets 3 | . . . 3 Max Gunslinging Chain 1 | . . . 1 Shots Hit Robots 160 | 3 1 21 135 Core Hits 64 | 1 . 7 56 Critical Kills . | . . . . Critical Parts Destroyed . | . . . . Critical Strikes 2 | . . 1 1 Blast 1 | . . . 1 Corrupt 1 | . . 1 . Melee Attacks . | . . . . Impact . | . . . . Slashing . | . . . . Piercing . | . . . . Sneak Attacks . | . . . . Combat Hostiles . | . . . . Follow-up Attacks . | . . . . Damage Inflicted 3293 | 39 13 201 3040 Guns 2504 | 39 13 201 2251 Cannons 688 | . . . 688 Explosions 101 | . . . 101 Melee . | . . . . Ramming . | . . . . Kinetic 2421 | . . . 2421 Thermal 619 | . . . 619 Explosive . | . . . . Electromagnetic 253 | 39 13 201 . Impact . | . . . . Slashing . | . . . . Piercing . | . . . . Highest Corruption 5 | . 1 . 5 Average Corruption 2 | . 1 . 2 Corruption Purged 5 | . . . 5 Corruption Blocked . | . . . . Effects 1 | . . . 1 Message Errors 1 | . . . 1 Overload Shots . | . . . . Overflow Damage . | . . . . Projectiles . | . . . . Explosions . | . . . . Melee . | . . . . Knockbacks . | . . . . Impact . | . . . . Kinetic . | . . . . Secondary . | . . . . Self-Inflicted Damage . | . . . . Shots . | . . . . Rammed . | . . . . Targets Rammed . | . . . . Kicked . | . . . . Crushed . | . . . . Highest Temperature 398 | . . 17 398 Average Temperature 81 | . . 6 85 Received Heat Transfer 819 | . . 90 729 Effects 1 | . . . 1 Shutdowns 1 | . . . 1 Siege Activations . | . . . . Martial Activations . | . . . . Shielding Activations . | . . . . Robots Disrupted . | . . . . Combat Hostiles . | . . . . Robots Corrupted . | . . . . Combat Hostiles . | . . . . Parts Fried 2 | . . 2 . Impact Corruptions . | . . . . Robots Melted . | . . . . Combat Hostiles . | . . . . Parts Melted . | . . . . Heat Transferred 1050 | . . . 1050 Parts Sabotaged . | . . . . Parts Stolen . | . . . . Parts Stripped . | . . . . Power Chain Reactions . | . . . . Alert | -11 -10 -9 -8 ------- Run | Yrd Mat Mat Mat Maximum Alert Level . | . . . . Low Security (%) 100 | 100 100 100 100 Level 1 . | . . . . Level 2 . | . . . . Level 3 . | . . . . Level 4 . | . . . . Level 5 . | . . . . High Security . | . . . . Max Security . | . . . . Peak Influence 175 | 5 5 60 175 Initial . | . . . . Average 60 | . . 16 77 Influence Increases 957 | 5 5 110 837 Destroy 0b10 Robot/C 480 | . . 80 400 Destroy 0b10 Robot/NC 90 | 5 . . 85 Destroy Leader 158 | . . 30 128 Successful Hack 5 | . 5 . . Disable Machine 90 | . . . 90 Destroy Structure 59 | . . . 59 Partial Spotted 15 | . . . 15 Lose Combat Pursuer 60 | . . . 60 Influence Decreases 832 | 5 5 110 712 Time Decay 667 | 5 5 80 577 Lost Part 165 | . . 30 135 Squads Dispatched 7 | . . 2 5 Investigation 1 | . . 1 . Extermination . | . . . . Reinforcement 6 | . . 1 5 Assault . | . . . . Garrison . | . . . . Intercept . | . . . . Searches Triggered . | . . . . Construction Impeded 2 | . . . 2 Haulers Reinforced . | . . . . Active Scanning Responses . | . . . . Cargo Convoy Interrupts . | . . . . Stealth | -11 -10 -9 -8 --------- Run | Yrd Mat Mat Mat Distress Signals . | . . . . Communications Jammed . | . . . . Distress Signals . | . . . . Times Spotted 50 | . . 10 40 Peak Tracking Total 6 | . . 6 5 Tactical Retreats 4 | . . . 4 Traps | -11 -10 -9 -8 ------- Run | Yrd Mat Mat Mat Traps Triggered 3 | . 1 2 . Indirectly . | . . . . Trap Hack Attempts . | . . . . Triggered . | . . . . Disarmed . | . . . . Reprogrammed . | . . . . Reused . | . . . . Traps Extracted . | . . . . Installed . | . . . . Triggered . | . . . . Machines | -11 -10 -9 -8 ---------- Run | Yrd Mat Mat Mat Machines Disabled 6 | . . . 6 Max in Single Turn 1 | . . . 1 Machines Repaired . | . . . . Machines Dismantled . | . . . . Machines Sabotaged . | . . . . Overloaded Fab Kills . | . . . . Hacking | -11 -10 -9 -8 --------- Run | Yrd Mat Mat Mat Machines Accessed 1 | . 1 . . Terminals 1 | . 1 . . Fabricators . | . . . . Repair Stations . | . . . . Recycling Units . | . . . . Scanalyzers . | . . . . Garrison Access . | . . . . Total Hacks 1 | . 1 . . Successful 1 | . 1 . . Failed . | . . . . Catastrophic . | . . . . Database Lockouts . | . . . . Manual . | . . . . Terminals 1 | . 1 . . Fabricators . | . . . . Repair Stations . | . . . . Recycling Units . | . . . . Scanalyzers . | . . . . Garrison Access . | . . . . Terminal Hacks 1 | . 1 . . Zone Layout 1 | . 1 . . Fabricator Hacks . | . . . . Repair Station Hacks . | . . . . Recycling Unit Hacks . | . . . . Scanalyzer . | . . . . Garrison Access Hacks . | . . . . Unauthorized Hacks . | . . . . Terminals . | . . . . Fabricators . | . . . . Repair Stations . | . . . . Recycling Units . | . . . . Scanalyzers . | . . . . Garrison Access . | . . . . Data Cores Recovered . | . . . . Used . | . . . . Hacking Detections . | . . . . Full Trace Events . | . . . . Feedback Events . | . . . . Feedback Blocked . | . . . . Robot Schematics Acquired . | . . . . Robots Built . | . . . . Authchips . | . . . . Time . | . . . . Total Robot Build Rating . | . . . . Part Schematics Acquired . | . . . . Parts Built . | . . . . Authchips . | . . . . Time . | . . . . Total Part Build Rating . | . . . . Parts Repaired . | . . . . Time . | . . . . Parts Recycled . | . . . . Recycled Matter . | . . . . Retrieved Matter . | . . . . Retrieved Components . | . . . . Parts Scanalyzed . | . . . . Part Schematics Acquired . | . . . . Parts Damaged . | . . . . Bothacking | -11 -10 -9 -8 ------------ Run | Yrd Mat Mat Mat Used RIF Installer . | . . . . Robots Hacked . | . . . . Non-combat . | . . . . Combat . | . . . . Robot Hacks Applied . | . . . . Relay Couplers Released . | . . . . Fabnet Peak Effective % . | . . . . Robots Rewired . | . . . . Allies Hacked . | . . . . Hacks Repelled . | . . . . Allies | -11 -10 -9 -8 -------- Run | Yrd Mat Mat Mat Total Allies . | . . . . Largest Group . | . . . . Highest-Rated Group . | . . . . Highest-Rated Ally . | . . . . Total Orders . | . . . . Ally Attacks . | . . . . Total Damage . | . . . . Kills . | . . . . Allies Corrupted . | . . . . Allies Melted . | . . . . Intel | -11 -10 -9 -8 ------- Run | Yrd Mat Mat Mat Active Infowar (turns) . | . . . . Robot Analysis Total . | . . . . Derelict Logs Recovered . | . . . . Drone Launches . | . . . . Drone Recoveries . | . . . . Exploration | -11 -10 -9 -8 ------------- Run | Yrd Mat Mat Mat Turns Passed 2549 | 74 243 297 1935 Spaces Moved 1531 | 44 150 162 1175 Core 231 | 12 . 2 217 Treads 294 | 32 150 112 . Legs . | . . . . Wheels . | . . . . Hover 118 | . . . 118 Flight 888 | . . 48 840 Fastest Speed 20 | 50 160 50 20 Average Speed 125 | 130 160 145 117 Slowest Speed 250 | 160 160 160 250 Overloaded Moves 43 | . . . 43 Propulsion Burnouts 1 | . . . 1 Robots Hopped 1 | . . . 1 Potential Cave-ins . | . . . . Cave-ins Triggered . | . . . . Exploration Rate (%) 28 | 4 28 19 64 Regions Visited 3 Branch Regions . Pre-discovered Areas . | . . . . Known Exits Taken . | . . . . Unknown Exits Taken 3 | 1 1 1 . Scrap Searched . | . . . . Spaces Dug . | . . . . Terrain Destroyed 66 | . . . 66 Melee . | . . . . Projectile 22 | . . . 22 AOE 44 | . . . 44 Terrain Rammed . | . . . . Walls Destroyed . | . . . . Machines Disabled . | . . . . Actions | -11 -10 -9 -8 --------- Run | Yrd Mat Mat Mat Total 1892 | 57 151 199 1485 Wait 52 | . . 4 48 Move 1526 | 43 149 161 1173 Hop 1 | . . . 1 Pick Up 41 | 5 . 4 32 Fast Attach 9 | . . . 9 Attach 46 | 4 . 4 38 Detach 13 | . . . 13 Swap 4 | . . . 4 Drop 17 | 1 . 2 14 Fire 183 | 4 2 24 153 Melee . | . . . . Ram . | . . . . Kick . | . . . . Crush . | . . . . Escape Stasis . | . . . . Rewire . | . . . . Trap . | . . . . Miscellaneous . | . . . . Route ------- -11/Scrapyard -10/Materials -9/Materials -8/Materials (discovered 3 exits: [*Fac x2] / [*Sto]) History --------- Turn | Location | Event 29 | -11/Scrapyard | Discovered new exit (range 12) 75 | -11/Scrapyard | Entered Materials 271 | -10/Materials | Discovered new exit (range 9) 304 | -10/Materials | Build established: Mutant 318 | -10/Materials | Entered another Materials area 318 | -9/Materials | Evolved 2 slots: Power x1, Utility x1 604 | -9/Materials | Discovered new exit (range 3) 615 | -9/Materials | Entered another Materials area 615 | -8/Materials | Evolved 2 slots: Propulsion x2 853 | -8/Materials | Discovered new exit (range 15) 988 | -8/Materials | Core integrity fell below 50% 1020 | -8/Materials | Lost 3 parts (1p1n1w) 1296 | -8/Materials | Discovered new exit (range 4) 1386 | -8/Materials | Build established: Scavenger-Mutant 1652 | -8/Materials | Lost 3 parts (1p2n) 1821 | -8/Materials | Build established: Mutant 1903 | -8/Materials | Discovered new exit (range 10) 2536 | -8/Materials | Core integrity fell below 20% 2550 | -8/Materials | Destroyed by G-47 Trooper with Particle Gun Last Messages --------------- Penetrated by Slug. Slug penetrates X-62 Marksman. Slug penetrates Wall. Slug penetrates X-62 Marksman. Slug penetrates M-13 Machinist. M-13 Machinist destroyed. X-62 Marksman destroyed. Switching to secondary target: X-62 Marksman. Penetrated by Slug. Critical hit (Destroy). Gauss Rifle destroyed. Slug penetrates Wall. Slug penetrates X-62 Marksman. K-01 Serf collects debris. Penetrated by Slug. Slug penetrates G-47 Trooper. K-01 Serf collects debris. Slug penetrates Wall. Slug penetrates X-62 Marksman. K-01 Serf collects debris. Map ----- +----------------------------------------------------+ | ???????# #????????????????????????????????? | | ###????# #????????????????????????????????? | | #T###### #????????######??????????????????? | | #???????# #??????????????????? | | #???????# #??????????????????? | | #######?# """ #??????????????????? | | ######## # #?# """ #??????????????????? | | ???????# # #?# """ #??????#???????????? | | ???????# # """ #?# #???? #???????????? | | ???????# ## """ #?# ! #?? #???????????? | | ???????# ## """ #######+# """ #???????????? | | ???????# ## + + """ #???????????? | | ???????# ## ! ####### # """ #???????????? | | ???????# ## ####### #?? #???????????? | | ???????# ## !!! ##[]] # #????###???????????? | | ???????# !## !!! ##[]! # #??????????????????? | | ???????#%=## !!! ##[]! # #??????????????????? | | ??????##%%## ## # #??????????????????? | | ??????# [ ##+##### # #??????????????????? | | ??????+ ! # # ##?????????????????? | | ??????# # + #?????????????????? | | #?????# ##### + # #?????????????????? | | #?????##+###???? # # #?????????????????? | | #?????? ??????? ###### #?????????????????? | | +?????? ????# / #####= #####+###?????????? | | ??????? + g !%=%|%@ #?????????? | | ??????? ????#! T x![!* #?????????? | | ??????? ????# ##k#########+###?????????? | | ???????"" ????##+??# #?????????????????????? | | ???????"" ?????????# ???????????????????????? | | ????????? ?????????#????????????????????????? | | ?????????#??????????????????????????????????? | | ????????????????????????????????????????????? | | ????????????????????????????????????????????? | | ????????????????????????????????????????????? | | ????????????????????????????????????????????? | | | | | | | | | | | | | | | | | | | | | | | | | | | | | +----------------------------------------------------+ Best States ------------- Heat Dissipation 45 Energy Generation 23 Energy Capacity 250 Matter Stores 300 Matter Capacity 300 Sight Range 16 Terrain Scan Density 10 Armor Coverage 150 Evasion (%) 64 Recoil Reduction 2 Item Schematics ----------------- None Robot Schematics ------------------ None Fabricated ------------ Nothing Repaired ---------- Nothing Alien Tech Used ----------------- None Achievements -------------- Can't Catch Me Challenges ------------ None Game ------ Seed StorageGrapheneMinigun Manual? 0 Play Time 00:23:26 Cumulative 68.2 hours Start 2025.07.24 @ 12:36:31 End 2025.07.24 @ 13:00:52 Sessions 1 Manual Loads 0 Difficulty Rogue Special Mode None Game No. 283 Rogue 283 Adventurer 0 Explorer 0 Win Type - Total 0 Types 0/0/0/0/0/0/0/0/0/0 Lore% 43 Gallery% 32 Achievement% 26 Wizard Run 0 Options --------- Layout 2 ASCII 0 Keyboard 0 Movement Mouse Keybinds 0 Fullscreen 1 Font 24/Terminus Map View 50x44 Zoom Use 0% Tactical HUD 0 Map Filters NONE Filters NONE Steam 1 RUN: 10fac48d-6185-4854-b11b-305464621900